fUSD/lending_fUSD_20240718
["ID","MTS","AMOUNT","RATE_DAILY","PERIOD"]
[332500308,1721278074626,187.22,0.00013828,2]
[332500309,1721278101709,1218.44,0.00013832,2]
[332500310,1721278136197,500.0,0.00013829,2]
[332500311,1721278155594,669.86,0.00013869,2]
[332500312,1721278195666,743.85,0.00011988,2]
[332500378,1721278238034,-336.01797,0.00014072,2]
[332500379,1721278238049,-54.90203,0.00014072,2]
[332500380,1721278238059,-157.51,0.00014079,2]
[332500381,1721278238069,-250.0,0.00014091,2]
[332500382,1721278238079,-743.85,0.00014252,2]
[332500383,1721278238088,-300.0,0.00014449,2]
[332500384,1721278238098,-2059.17254333,0.00014449,2]
[332500385,1721278238107,-10109.34,0.0001445,2]
[332500386,1721278238118,-1254.99718635,0.00014492,2]
[332500387,1721278238127,-23900.0,0.00014492,2]
[332500388,1721278238136,-150.0,0.00014493,2]
[332500389,1721278238146,-400.0,0.000145,5]
[332500390,1721278238155,-350.93542688,0.00014598,2]
[332500391,1721278238164,-800.0,0.000146,5]
[332500392,1721278238173,-499.99,0.00014649,2]
[332500393,1721278238183,-169.56,0.0001466,2]
[332500394,1721278238192,-827.12,0.0001466,2]
[332500395,1721278238202,-150.99,0.0001466,2]
[332500396,1721278238212,-1691.47,0.0001466,2]
[332500397,1721278238221,-1200.0,0.000147,5]
[332500398,1721278238231,-1600.0,0.000148,5]
[332500399,1721278238241,-617.2098066,0.0001489,2]
[332500400,1721278238252,-1217.94669119,0.0001489,2]
[332500401,1721278238263,-648.7378,0.0001489,2]
[332500402,1721278238272,-3010.9431,0.0001489,2]
[332500403,1721278238282,-295.2749,0.0001489,2]
[332500404,1721278238292,-448.35601268,0.00014899,2]
[332500405,1721278238302,-599.58301876,0.00014899,2]
[332500406,1721278238311,-30330.7399,0.000149,2]
[332500407,1721278238321,-2058.4104,0.000149,2]
[332500408,1721278238331,-10472.4347,0.000149,2]
[332500409,1721278238340,-167.66739738,0.000149,2]
[332500410,1721278238351,-2000.0,0.000149,5]
[332500411,1721278238360,-182.50200538,0.000149,2]
[332500412,1721278238369,-281.97584523,0.000149,2]
[332500413,1721278238380,-194.85349123,0.000149,2]
[332500414,1721278238390,-313.64420759,0.000149,2]
[332500415,1721278238399,-209.2893539,0.000149,2]
[332500416,1721278238409,-155.0,0.00014979,2]
[332500417,1721278238418,-178.37,0.0001498,3]
[332500418,1721278238427,-535.12,0.0001498,3]
[332500419,1721278238436,-12432.4518296,0.0001498,2]
[332500420,1721278238446,-208.95928661,0.00014982,2]
[332500421,1721278238455,-2486.49036592,0.00014989,2]
[332500422,1721278238465,-750.0,0.00014989,2]
[332500423,1721278238475,-31389.77323524,0.0001499,2]
[332500424,1721278238514,-45691.42810826,0.0001499,2]
[332500425,1721278238524,-8419.2252549,0.0001499,2]
[332500428,1721278238621,-81206.18668763,0.0001499,2]
[332500429,1721278238640,-343.85707999,0.0001499,2]
[332500433,1721278239679,-3291.93604274,0.0001499,2]
[332500434,1721278239691,-48012.25,0.0001499,2]
[332500435,1721278239857,-6687.37671374,0.0001499,2]
[332500436,1721278239867,-237.84200353,0.00014999,2]
[332500437,1721278239877,-500.0,0.00014999,2]
[332500438,1721278239886,-610.97112011,0.00014999,2]
[332500439,1721278239895,-500.0,0.00014999,2]
[332500440,1721278239905,-500.0,0.00014999,2]
[332500441,1721278239914,-500.0,0.00014999,2]
[332500442,1721278239923,-500.0,0.00014999,2]
[332500443,1721278239932,-500.0,0.00014999,2]
[332500444,1721278239941,-328.75243018,0.00014999,2]
[332500445,1721278239951,-150.0,0.00014999,2]
[332500446,1721278240097,-300.0,0.00014999,2]
[332500447,1721278240129,-300.0,0.00014999,2]
[332500448,1721278240139,-300.0,0.00014999,2]
[332500449,1721278240149,-3605715.61640664,0.00015,2]
[332500450,1721278240159,-3973.24754201,0.00015,2]
[332500451,1721278240169,-988.58381,0.00015,2]
[332500452,1721278240179,-163.42,0.00015027,2]
[332500453,1721278240190,-759.04945973,0.00015174,2]
[332500454,1721278240199,-3313.1237921,0.00015175,2]
[332500456,1721278240211,-300.0,0.000152,2]
[332500458,1721278240221,-300.79,0.000152,2]
[332500460,1721278240231,-150.0,0.000152,2]
[332500463,1721278240242,-165.16,0.000152,2]
[332500465,1721278240252,-150.0,0.000152,2]
[332500467,1721278240262,-150.0,0.000152,2]
[332500469,1721278240272,-150.0,0.000152,2]
[332500470,1721278240281,-150.0,0.000152,2]
[332500472,1721278240291,-165.16,0.000152,2]
[332500474,1721278240301,-855.77,0.000152,2]
[332500476,1721278240310,-150.0,0.000152,2]
[332500478,1721278240319,-150.0,0.000152,2]
[332500480,1721278240329,-150.0,0.000152,2]
[332500482,1721278240338,-165.16,0.000152,2]
[332500484,1721278240347,-150.0,0.000152,2]
[332500486,1721278240357,-165.16,0.000152,2]
[332500488,1721278240366,-165.16,0.000152,2]
[332500490,1721278240375,-669.86,0.00015602,2]
[332500492,1721278240385,-10000.0,0.00015709,2]
[332500493,1721278240394,-617.20980654,0.00015721,2]
[332500495,1721278240403,-1217.94669112,0.00015721,2]
[332500497,1721278240413,-163.42,0.00015779,2]
[332500499,1721278240423,-1848.98962017,0.00015821,2]
[332500501,1721278240432,-420.0,0.00015822,2]
[332500503,1721278240441,-448.35601268,0.00015871,2]
[332500505,1721278240450,-620.0,0.00015872,2]
[332500507,1721278240460,-450.0,0.00015872,2]
[332500509,1721278240469,-742.246,0.00015872,2]
[332500511,1721278240478,-445.0,0.00015872,2]
[332500513,1721278240488,-3261.505,0.00015872,2]
[332500515,1721278240497,-1992.0,0.00015872,2]
[332500517,1721278240507,-345.869,0.00015872,2]
[332500519,1721278240517,-1072.0,0.00015872,2]
[332500521,1721278240526,-1546.0,0.000159,2]
[332500523,1721278240535,-1022.0,0.000159,2]
[332500525,1721278240545,-5000.0,0.00016,2]
[332500527,1721278240554,-988.58381,0.0001602,2]
[332500529,1721278240564,-356.74,0.0001635,3]
[332500531,1721278240573,-946.5561817,0.00016515,2]
[332500533,1721278240583,-743.85,0.00016516,2]
[332500535,1721278240592,-163.42,0.0001653,2]
[332500536,1721278240602,-617.20980654,0.00016551,2]
[332500537,1721278240612,-1217.94669112,0.00016551,2]
[332500538,1721278240621,-281.97584522,0.000166,2]
[332500539,1721278240631,-1195.08005924,0.00016625,2]
[332500540,1721278240640,-293.05660178,0.00016626,2]
[332500541,1721278240650,-154.88,0.00016627,2]
[332500542,1721278240659,-2253.0,0.000167,2]
[332500543,1721278240669,-170.06794588,0.00016811,2]
[332500544,1721278240680,-215.79302888,0.00016811,2]
[332500545,1721278240690,-448.35601268,0.00016842,2]
[332500546,1721278240699,-650.0,0.00017,2]
[332500547,1721278240708,-211.32,0.00017257,2]
[332500548,1721278240718,-988.58381,0.0001727,2]
[332500549,1721278240727,-163.42,0.00017281,2]
[332500550,1721278240736,-587.0,0.00017326,2]
[332500551,1721278240746,-669.86,0.00017336,2]
[332500552,1721278240755,-190.4,0.00017344,2]
[332500553,1721278240765,-617.20980654,0.00017382,2]
[332500554,1721278240774,-1217.94669112,0.00017382,2]
[332500555,1721278240783,-448.35601268,0.00017814,2]
[332500556,1721278240792,-800.0,0.00018,2]
[332500557,1721278240802,-371.29329548,0.00018032,2]
[332500558,1721278240811,-413.80836051,0.00018032,2]
[332500559,1721278240820,-163.42,0.00018033,2]
[332500560,1721278240830,-617.20980654,0.00018212,2]
[332500561,1721278240839,-1217.94669112,0.00018212,2]
[332500562,1721278240848,-162.33,0.0001826,2]
[332500563,1721278240858,-192.61,0.0001826,2]
[332500564,1721278240872,-6741.33,0.0001826,2]
[332500565,1721278240882,-200.0,0.0001826,2]
[332500566,1721278240892,-151.25135909,0.00018268,2]
[332500567,1721278240902,-281.97584522,0.000183,2]
[332500568,1721278240912,-388.0,0.00018301,2]
[332500569,1721278240922,-173.69,0.00018347,2]
[332500570,1721278240931,-182.50200537,0.00018359,3]
[332500571,1721278240941,-151.2513591,0.00018449,2]
[332500572,1721278240951,-988.58381,0.0001853,2]
[332500573,1721278240961,-6281.77658278,0.000186,2]
[332500574,1721278240971,-1000.0,0.00018772,2]
[332500575,1721278240981,-1000.0,0.00018772,2]
[332500576,1721278240991,-1000.0,0.00018772,2]
[332500577,1721278241000,-1000.0,0.00018772,2]
[332500578,1721278241009,-1000.0,0.00018772,2]
[332500579,1721278241019,-1000.0,0.00018772,2]
[332500580,1721278241029,-1000.0,0.00018772,2]
[332500581,1721278241043,-1000.0,0.00018772,2]
[332500582,1721278241053,-1000.0,0.00018772,2]
[332500583,1721278241063,-1000.0,0.00018772,2]
[332500584,1721278241073,-1000.0,0.00018772,2]
[332500585,1721278241082,-1000.0,0.00018772,2]
[332500586,1721278241091,-1000.0,0.00018772,2]
[332500587,1721278241101,-1000.0,0.00018772,2]
[332500588,1721278241110,-1000.0,0.00018772,2]
[332500589,1721278241120,-1000.0,0.00018772,2]
[332500590,1721278241130,-1000.0,0.00018772,2]
[332500591,1721278241139,-1000.0,0.00018772,2]
[332500592,1721278241149,-1000.0,0.00018772,2]
[332500593,1721278241159,-1000.0,0.00018772,2]
[332500594,1721278241169,-1000.0,0.00018772,2]
[332500595,1721278241178,-1000.0,0.00018772,2]
[332500596,1721278241188,-1000.0,0.00018772,2]
[332500597,1721278241198,-1000.0,0.00018772,2]
[332500598,1721278241207,-1000.0,0.00018772,2]
[332500599,1721278241217,-1000.0,0.00018772,2]
[332500600,1721278241227,-1000.0,0.00018772,2]
[332500601,1721278241236,-1000.0,0.00018772,2]
[332500602,1721278241245,-1000.0,0.00018772,2]
[332500603,1721278241254,-817.0,0.00018772,2]
[332500604,1721278241263,-743.85,0.0001878,2]
[332500605,1721278241273,-448.35601268,0.00018785,2]
[332500606,1721278241283,-1542.067,0.00018872,2]
[332500607,1721278241292,-800.0,0.00018973,2]
[332500608,1721278241301,-617.20980654,0.00019043,2]
[332500609,1721278241311,-1217.94669112,0.00019043,2]
[332500610,1721278241321,-669.86,0.0001907,2]
[332500611,1721278241331,-150.0,0.00019235,2]
[332500612,1721278241341,-319.0,0.0001924,2]
[332500613,1721278241351,-1218.44,0.00019364,2]
[332500614,1721278241360,-151.27083308,0.00019488,2]
[332500615,1721278241369,-151.27083308,0.00019519,2]
[332500616,1721278241380,-1456.8271511,0.00019599,2]
[332500617,1721278241389,-448.35601268,0.00019757,2]
[332500618,1721278241399,-988.58381,0.0001978,2]
[332500619,1721278241409,-157.03226319,0.0001985,2]
[332500620,1721278241418,-157.03226319,0.00019858,2]
[332500621,1721278241427,-617.20980654,0.00019873,2]
[332500622,1721278241437,-1217.94669112,0.00019873,2]
[332500623,1721278241446,-2506.87,0.000199,2]
[332500624,1721278241456,-6025.47596535,0.000199,2]
[332500625,1721278241465,-155.0,0.000199,2]
[332500626,1721278241474,-313.64420757,0.000199,2]
[332500627,1721278241484,-3469.22672644,0.0001994,2]
[332500628,1721278241493,-5.00854933,0.0002,2]
[332500629,1721278241503,-188.43960679,0.0002,2]
[332500630,1721278241512,-91000.0,0.0002,2]
[332500631,1721278241522,-309.77239379,0.0002,2]
[332500632,1721278241532,-4988.94,0.0002,2]
[332500633,1721278241541,-23939.89,0.0002,2]
[332500634,1721278241552,-1663.33230065,0.0002,4]
[332500635,1721278241562,-281.97584522,0.0002,2]
[332500636,1721278241573,-152.10825305,0.00020019,2]
[332500637,1721278241582,-153.0,0.00020119,2]
[332500638,1721278241592,-153.0,0.00020119,2]
[332500639,1721278241602,-153.0,0.00020119,2]
[332500640,1721278241612,-153.0,0.00020119,2]
[332500641,1721278241622,-153.0,0.00020126,2]
[332500642,1721278241631,-153.0,0.00020126,2]
[332500643,1721278241642,-153.0,0.00020126,2]
[332500644,1721278241651,-153.0,0.00020126,2]
[332500645,1721278241661,-153.0,0.00020133,2]
[332500646,1721278241671,-153.0,0.00020133,2]
[332500647,1721278241681,-153.0,0.00020133,2]
[332500648,1721278241691,-153.0,0.00020133,2]
[332500649,1721278241700,-153.0,0.00020139,2]
[332500650,1721278241710,-153.0,0.00020139,2]
[332500651,1721278241719,-153.0,0.00020139,2]
[332500652,1721278241729,-153.0,0.00020139,2]
[332500653,1721278241738,-2021.38780005,0.000202,2]
[332500654,1721278241748,-366.47664087,0.00020277,2]
[332500655,1721278241757,-157.03226319,0.00020278,2]
[332500656,1721278241767,-306.02874822,0.00020499,2]
[332500657,1721278241776,-306.02874822,0.00020499,2]
[332500658,1721278241785,-300.0,0.00020499,2]
[332500659,1721278241795,-366.83842223,0.00020703,2]
[332500660,1721278241805,-617.20980654,0.00020704,2]
[332500661,1721278241815,-1217.94669112,0.00020704,2]
[332500662,1721278241825,-2253.84044189,0.000208,2]
[332500663,1721278241834,-372.73525299,0.00020802,2]
[332500664,1721278241843,-669.86,0.00020803,2]
[332500665,1721278241853,-190.4,0.00020813,2]
[332500666,1721278241863,-157.03226319,0.00020816,2]
[332500667,1721278241872,-529.42495202,0.00020983,2]
[332500668,1721278241883,-2611.973234,0.00020984,2]
[332500669,1721278241892,-2246.026599,0.00020984,2]
[332500670,1721278241902,-194.224702,0.00020984,2]
[332500671,1721278241911,-185.750658,0.00020984,2]
[332500672,1721278241920,-187.961007,0.00020984,2]
[332500673,1721278241930,-162.328011,0.00020984,2]
[332500674,1721278241940,-187.565738,0.00020984,2]
[332500675,1721278241949,-4672.103028,0.00020984,2]
[332500676,1721278241959,-170.224366,0.00020984,2]
[332500677,1721278241970,-159.889631,0.00020984,2]
[332500678,1721278241979,-219.64765,0.00020984,2]
[332500679,1721278241989,-150.926263,0.00020984,2]
[332500680,1721278241999,-195.89583,0.00020984,2]
[332500681,1721278242009,-155.90394,0.00020984,2]
[332500682,1721278242018,-174.825655,0.00020984,2]
[332500683,1721278242028,-185.109517,0.00020984,2]
[332500684,1721278242041,-219.64765,0.00020984,2]
[332500685,1721278242050,-150.926264,0.00020984,2]
[332500686,1721278242059,-154.257931,0.00020984,2]
[332500687,1721278242071,-178.939199,0.00020984,2]
[332500688,1721278242080,-658.942952,0.00020984,2]
[332500689,1721278242092,-452.778792,0.00020984,2]
[332500690,1721278242102,-174.825656,0.00020984,2]
[332500691,1721278242111,-151.85258006,0.00020999,7]
[332500692,1721278242121,-387.33708167,0.00021,2]
[332500693,1721278242132,-323098.0,0.00021,2]
[332500694,1721278242141,-988.58381,0.0002102,2]
[332500695,1721278242151,-181.87143726,0.00021037,2]
[332500696,1721278242161,-743.85,0.00021043,2]
[332500697,1721278242171,-157.03226319,0.0002116,2]
[332500698,1721278242180,-151.27083309,0.00021189,2]
[332500699,1721278242190,-500.0,0.00021199,2]
[332500700,1721278242199,-200.0,0.00021199,2]
[332500701,1721278242209,-2611.973234,0.00021246,2]
[332500702,1721278242220,-2246.026599,0.00021246,2]
[332500703,1721278242229,-4672.103028,0.00021246,2]
[332500704,1721278242239,-219.64765,0.00021246,2]
[332500705,1721278242248,-150.926263,0.00021246,2]
[332500706,1721278242258,-219.64765,0.00021246,2]
[332500707,1721278242268,-150.926264,0.00021246,2]
[332500708,1721278242277,-178.939199,0.00021246,2]
[332500709,1721278242287,-658.942952,0.00021246,2]
[332500710,1721278242297,-452.778792,0.00021246,2]
[332500711,1721278242306,-185.750658,0.00021333,2]
[332500712,1721278242316,-162.328011,0.00021333,2]
[332500713,1721278242326,-169.35308736,0.00021375,2]
[332500715,1721278242336,-180.0,0.00021397,2]
[332500716,1721278242346,-194.224702,0.00021508,2]
[332500717,1721278242356,-187.565738,0.00021508,2]
[332500718,1721278242365,-174.825655,0.00021508,2]
[332500719,1721278242375,-174.825656,0.00021508,2]
[332500720,1721278242384,-2611.973234,0.00021508,2]
[332500722,1721278242394,-2246.026599,0.00021508,2]
[332500724,1721278242403,-4672.103028,0.00021508,2]
[332500725,1721278242413,-219.64765,0.00021508,2]
[332500726,1721278242422,-150.926263,0.00021508,2]
[332500727,1721278242432,-219.64765,0.00021508,2]
[332500728,1721278242442,-150.926264,0.00021508,2]
[332500729,1721278242452,-178.939199,0.00021508,2]
[332500730,1721278242461,-658.942952,0.00021508,2]
[332500731,1721278242471,-452.778792,0.00021508,2]
[332500732,1721278242481,-617.20980654,0.00021534,2]
[332500733,1721278242490,-1217.94669112,0.00021534,2]
[332500734,1721278242500,-1500.0,0.00021601,2]
[332500735,1721278242509,-932.38,0.00021644,2]
[332500736,1721278242519,-152.10825305,0.00021664,2]
[332500737,1721278242529,-185.750658,0.00021683,2]
[332500738,1721278242539,-162.328011,0.00021683,2]
[332500739,1721278242549,-5000.0,0.00021699,2]
[332500740,1721278242559,-400.0,0.000217,7]
[332500742,1721278242569,-1000.0,0.000217,2]
[332500745,1721278242579,-281.97584522,0.000217,2]
[332500747,1721278242590,-150.0,0.0002172,2]
[332500750,1721278242600,-150.0,0.0002173,2]
[332500751,1721278242610,-2611.973234,0.00021771,2]
[332500755,1721278242620,-2246.026599,0.00021771,2]
[332500757,1721278242631,-4672.103028,0.00021771,2]
[332500759,1721278242640,-219.64765,0.00021771,2]
[332500761,1721278242650,-150.926263,0.00021771,2]
[332500763,1721278242659,-219.64765,0.00021771,2]
[332500765,1721278242668,-150.926264,0.00021771,2]
[332500767,1721278242677,-178.939199,0.00021771,2]
[332500769,1721278242687,-658.942952,0.00021771,2]
[332500771,1721278242697,-452.778792,0.00021771,2]
[332500773,1721278242706,-300.0,0.00021798,2]
[332500774,1721278242716,-300.0,0.00021799,2]
[332500775,1721278242726,-123385.74903661,0.00021799,2]
[332500776,1721278242736,-305.34466376,0.00021799,2]
[332500777,1721278242746,-584032.80234642,0.000218,7]
[332500778,1721278242755,-3803.8937733,0.000218,2]
[332500779,1721278242765,-400.0,0.000218,7]
[332500780,1721278242775,-7603758.0,0.000218,2]
[332500781,1721278242785,-1000.0,0.000218,7]
[332500782,1721278242796,-182.50200537,0.00021817,4]
[332500783,1721278242806,-150.0,0.00021821,2]
[332500784,1721278242816,-150.0,0.00021873,2]
[332500785,1721278242826,-150.0,0.00021876,2]
[332500786,1721278242836,-150.0,0.00021891,2]
[332500787,1721278242846,-400.0,0.000219,7]
[332500788,1721278242856,-150.0,0.00021908,2]
[332500789,1721278242866,-155.0,0.00021917,2]
[332500790,1721278242875,-500.0,0.00021917,2]
[332500791,1721278242885,-500.0,0.00021917,2]
[332500792,1721278242895,-500.0,0.00021917,2]
[332500793,1721278243230,-500.0,0.00021917,2]
[332500794,1721278243245,-500.0,0.00021917,2]
[332500795,1721278243255,-500.0,0.00021917,2]
[332500796,1721278243265,-500.0,0.00021917,2]
[332500798,1721278243274,-626.19619582,0.00021917,2]
[332500799,1721278243283,-500.0,0.00021917,2]
[332500800,1721278243293,-524.9621376,0.00021917,2]
[332500801,1721278243302,-416.09389546,0.00021917,2]
[332500802,1721278243312,-151.0,0.00021917,2]
[332500803,1721278243323,-660.98,0.00021917,2]
[332500804,1721278243333,-500.0,0.00021917,2]
[332500805,1721278243343,-500.0,0.00021917,2]
[332500806,1721278243352,-500.0,0.00021917,2]
[332500807,1721278243362,-505.60383297,0.00021917,2]
[332500808,1721278243371,-563.88,0.00021917,2]
[332500809,1721278243381,-503.33541133,0.00021917,2]
[332500810,1721278243391,-500.0,0.00021917,2]
[332500811,1721278243400,-500.0,0.00021917,2]
[332500812,1721278243410,-671.28,0.00021917,2]
[332500813,1721278243419,-500.0,0.00021917,2]
[332500814,1721278243429,-500.0,0.00021917,2]
[332500815,1721278243440,-500.0,0.00021917,2]
[332500816,1721278243450,-500.0,0.00021917,2]
[332500817,1721278243460,-500.0,0.00021917,2]
[332500818,1721278243471,-500.0,0.00021917,2]
[332500819,1721278243480,-500.0,0.00021917,2]
[332500820,1721278243491,-500.0,0.00021917,2]
[332500821,1721278243500,-500.0,0.00021917,2]
[332500822,1721278243510,-1004.82,0.00021917,2]
[332500823,1721278243519,-1395.21,0.00021917,2]
[332500824,1721278243529,-615.75,0.00021917,2]
[332500825,1721278243539,-151.0,0.00021917,2]
[332500826,1721278243549,-500.0,0.00021917,2]
[332500827,1721278243559,-500.0,0.00021917,2]
[332500828,1721278243570,-500.0,0.00021917,2]
[332500829,1721278243580,-248.08198253,0.00021917,2]
[332500830,1721278243590,-500.0,0.00021917,2]
[332500831,1721278243600,-500.0,0.00021917,2]
[332500832,1721278243610,-500.0,0.00021917,2]
[332500833,1721278243620,-500.0,0.00021917,2]
[332500834,1721278243630,-504.19540156,0.00021917,2]
[332500835,1721278243641,-589.23916621,0.00021917,2]
[332500836,1721278243652,-153.70052132,0.00021917,2]
[332500837,1721278243662,-500.0,0.00021917,2]
[332500838,1721278243672,-500.0,0.00021917,2]
[332500839,1721278243681,-500.0,0.00021917,2]
[332500840,1721278243693,-922.3,0.00021917,2]
[332500841,1721278243703,-500.0,0.00021917,2]
[332500842,1721278243713,-151.0,0.00021917,2]
[332500843,1721278243722,-500.0,0.00021917,2]
[332500844,1721278243732,-151.299748,0.00021917,2]
[332500845,1721278243742,-151.410942,0.00021917,2]
[332500846,1721278243752,-500.0,0.00021917,2]
[332500847,1721278243762,-500.0,0.00021917,2]
[332500848,1721278243772,-151.0,0.00021917,2]
[332500849,1721278243781,-500.0,0.00021917,2]
[332500850,1721278243791,-500.0,0.00021917,2]
[332500851,1721278243800,-1100.58,0.00021917,2]
[332500852,1721278243810,-500.0,0.00021917,2]
[332500853,1721278243820,-500.0,0.00021917,2]
[332500854,1721278243829,-151.0,0.00021917,2]
[332500855,1721278243839,-816.86,0.00021917,2]
[332500856,1721278243848,-639.89232428,0.00021917,2]
[332500857,1721278243858,-511.82298443,0.00021917,2]
[332500858,1721278243867,-500.0,0.00021917,2]
[332500859,1721278243879,-600.98603047,0.00021917,2]
[332500860,1721278243889,-500.0,0.00021917,2]
[332500861,1721278243899,-509.0160397,0.00021917,2]
[332500862,1721278243908,-842.54,0.00021917,2]
[332500863,1721278243918,-500.0,0.00021917,2]
[332500864,1721278243928,-500.0,0.00021917,2]
[332500865,1721278243937,-500.0,0.00021917,2]
[332500866,1721278243949,-510.33064922,0.00021917,2]
[332500867,1721278243959,-500.0,0.00021917,2]
[332500868,1721278243969,-500.0,0.00021917,2]
[332500869,1721278243981,-500.0,0.00021917,2]
[332500870,1721278243991,-500.0,0.00021917,2]
[332500871,1721278244001,-500.0,0.00021917,2]
[332500872,1721278244010,-500.0,0.00021917,2]
[332500873,1721278244020,-500.0,0.00021917,2]
[332500874,1721278244029,-500.0,0.00021917,2]
[332500875,1721278244041,-500.0,0.00021917,2]
[332500876,1721278244051,-726.21,0.00021917,2]
[332500877,1721278244060,-161.482097,0.00021917,2]
[332500878,1721278244071,-747.29,0.00021917,2]
[332500879,1721278244082,-500.0,0.00021917,2]
[332500880,1721278244091,-500.0,0.00021917,2]
[332500881,1721278244100,-518.35,0.00021917,2]
[332500882,1721278244111,-500.0,0.00021917,2]
[332500883,1721278244121,-513.68,0.00021917,2]
[332500884,1721278244131,-500.0,0.00021917,2]
[332500885,1721278244140,-912.57,0.00021917,2]
[332500886,1721278244150,-628.56523322,0.00021917,2]
[332500887,1721278244159,-500.0,0.00021917,2]
[332500888,1721278244169,-500.0,0.00021917,2]
[332500889,1721278244180,-500.0,0.00021917,2]
[332500890,1721278244189,-500.0,0.00021917,2]
[332500891,1721278244200,-500.0,0.00021917,2]
[332500892,1721278244210,-715.61,0.00021917,2]
[332500893,1721278244220,-500.0,0.00021917,2]
[332500894,1721278244229,-500.0,0.00021917,2]
[332500895,1721278244239,-500.0,0.00021917,2]
[332500896,1721278244248,-500.0,0.00021917,2]
[332500897,1721278244258,-163.85771726,0.00021917,2]
[332500898,1721278244267,-500.0,0.00021917,2]
[332500899,1721278244278,-500.0,0.00021917,2]
[332500900,1721278244288,-485.0,0.00021917,2]
[332500901,1721278244298,-500.0,0.00021917,2]
[332500902,1721278244308,-500.0,0.00021917,2]
[332500903,1721278244318,-500.0,0.00021917,2]
[332500904,1721278244328,-504.6281767,0.00021917,2]
[332500905,1721278244338,-500.0,0.00021917,2]
[332500906,1721278244349,-503.94965278,0.00021917,2]
[332500907,1721278244359,-151.0,0.00021917,2]
[332500908,1721278244368,-500.0,0.00021917,2]
[332500909,1721278244378,-500.0,0.00021917,2]
[332500910,1721278244388,-500.0,0.00021917,2]
[332500911,1721278244397,-218.10036241,0.00021917,2]
[332500912,1721278244407,-500.0,0.00021917,2]
[332500913,1721278244417,-528.41,0.00021917,2]
[332500914,1721278244427,-500.0,0.00021917,2]
[332500915,1721278244436,-500.0,0.00021917,2]
[332500916,1721278244446,-151.0,0.00021917,2]
[332500917,1721278244456,-500.0,0.00021917,2]
[332500918,1721278244465,-500.0,0.00021917,2]
[332500919,1721278244475,-1174.7,0.00021917,2]
[332500920,1721278244485,-500.0,0.00021917,2]
[332500921,1721278244494,-500.0,0.00021917,2]
[332500922,1721278244503,-500.0,0.00021917,2]
[332500923,1721278244513,-500.0,0.00021917,2]
[332500924,1721278244523,-151.0,0.00021917,2]
[332500925,1721278244533,-500.0,0.00021917,2]
[332500926,1721278244543,-500.0,0.00021917,2]
[332500927,1721278244553,-500.0,0.00021917,2]
[332500928,1721278244563,-406.60715237,0.00021917,2]
[332500929,1721278244573,-151.0,0.00021917,2]
[332500930,1721278244583,-151.0,0.00021917,2]
[332500931,1721278244593,-500.0,0.00021917,2]
[332500932,1721278244603,-510.57,0.00021917,2]
[332500933,1721278244613,-151.0,0.00021917,2]
[332500934,1721278244623,-500.0,0.00021917,2]
[332500935,1721278244634,-500.0,0.00021917,2]
[332500936,1721278244643,-675.6,0.00021917,2]
[332500937,1721278244653,-579.06898244,0.00021917,2]
[332500938,1721278244663,-500.0,0.00021917,2]
[332500939,1721278244672,-500.0,0.00021917,2]